[Event "Titled Tuesday Blitz July 11 Late 2023"]
[White "Goncalves, Davi Sulzbacher"]
[Black "Geivondian, Arman"]
[WhiteFideId "2154510"]
[BlackFideId "24102032"]
[WhiteElo "2441"]
[BlackElo "2582"]
[Result "0-1"]
[Round "3"]
[TimeControl "180+2"]
[Date "2023.07.11"]
[WhiteClock "0:00:00"]
[BlackClock "0:02:06"]
[Board "89"]

1. e4 {[%clk 0:02:41]}  c6 {[%clk 0:03:00]} 2. Nf3 {[%clk 0:02:42]}  d5 {[%clk 0:03:01]} 3. Nc3 {[%clk 0:02:42]}  dxe4 {[%clk 0:03:01]} 4. Nxe4 {[%clk 0:02:42]}  Nf6 {[%clk 0:03:00]} 5. Nxf6+ {[%clk 0:02:39]}  exf6 {[%clk 0:03:01]} 6. d4 {[%clk 0:02:38]}  Bd6 {[%clk 0:03:02]} 7. Be2 {[%clk 0:02:37]}  O-O {[%clk 0:03:02]} 8. O-O {[%clk 0:02:37]}  Re8 {[%clk 0:03:03]} 9. c3 {[%clk 0:02:34]}  Nd7 {[%clk 0:03:04]} 10. Be3 {[%clk 0:02:31]}  Nf8 {[%clk 0:03:05]} 11. a4 {[%clk 0:02:28]}  Ng6 {[%clk 0:03:05]} 12. Re1 {[%clk 0:02:25]}  Bg4 {[%clk 0:03:06]} 13. h3 {[%clk 0:02:24]}  Bf5 {[%clk 0:03:06]} 14. Bd3 {[%clk 0:02:17]}  Qd7 {[%clk 0:03:06]} 15. Bxf5 {[%clk 0:02:15]}  Qxf5 {[%clk 0:03:07]} 16. Qb1 {[%clk 0:02:10]}  Qh5 {[%clk 0:03:07]} 17. a5 {[%clk 0:01:47]}  Re6 {[%clk 0:03:05]} 18. Qd3 {[%clk 0:01:40]}  Rae8 {[%clk 0:03:04]} 19. Bd2 {[%clk 0:01:40]}  Bf4 {[%clk 0:03:00]} 20. Rxe6 {[%clk 0:01:36]}  Rxe6 {[%clk 0:03:01]} 21. a6 {[%clk 0:01:32]}  b5 {[%clk 0:03:01]} 22. d5 {[%clk 0:00:45]}  Qxd5 {[%clk 0:02:59]} 23. Qxd5 {[%clk 0:00:45]}  cxd5 {[%clk 0:03:00]} 24. Bxf4 {[%clk 0:00:45]}  Nxf4 {[%clk 0:03:01]} 25. Nd4 {[%clk 0:00:45]}  Ne2+ {[%clk 0:03:02]} 26. Nxe2 {[%clk 0:00:31]}  Rxe2 {[%clk 0:03:02]} 27. Rd1 {[%clk 0:00:31]}  Rxb2 {[%clk 0:03:01]} 28. Rxd5 {[%clk 0:00:32]}  g5 {[%clk 0:02:57]} 29. Rd7 {[%clk 0:00:31]}  Rc2 {[%clk 0:02:55]} 30. Rxa7 {[%clk 0:00:31]}  Rxc3 {[%clk 0:02:55]} 31. Rb7 {[%clk 0:00:31]}  Ra3 {[%clk 0:02:55]} 32. a7 {[%clk 0:00:30]}  Kg7 {[%clk 0:02:53]} 33. Kf1 {[%clk 0:00:24]}  b4 {[%clk 0:02:53]} 34. Ke2 {[%clk 0:00:24]}  f5 {[%clk 0:02:52]} 35. Kd2 {[%clk 0:00:23]}  h5 {[%clk 0:02:52]} 36. Kc2 {[%clk 0:00:22]}  h4 {[%clk 0:02:52]} 37. Kb2 {[%clk 0:00:22]}  Kg6 {[%clk 0:02:51]} 38. Rc7 {[%clk 0:00:21]}  Kf6 {[%clk 0:02:47]} 39. Rb7 {[%clk 0:00:21]}  Ke5 {[%clk 0:02:46]} 40. Rxf7 {[%clk 0:00:18]}  g4 {[%clk 0:02:46]} 41. Rb7 {[%clk 0:00:18]}  Kf6 {[%clk 0:02:44]} 42. Rc7 {[%clk 0:00:17]}  Kg6 {[%clk 0:02:41]} 43. Rb7 {[%clk 0:00:17]}  f4 {[%clk 0:02:41]} 44. hxg4 {[%clk 0:00:16]}  f3 {[%clk 0:02:42]} 45. Rb6+ {[%clk 0:00:08]}  Kg7 {[%clk 0:02:30]} 46. Rb7+ {[%clk 0:00:08]}  Kg6 {[%clk 0:02:30]} 47. Rb6+ {[%clk 0:00:08]}  Kg5 {[%clk 0:02:26]} 48. Rb5+ {[%clk 0:00:08]}  Kf6 {[%clk 0:02:27]} 49. gxf3 {[%clk 0:00:06]}  Rxa7 {[%clk 0:02:26]} 50. Rh5 {[%clk 0:00:06]}  Ra3 {[%clk 0:02:26]} 51. f4 {[%clk 0:00:05]}  Rf3 {[%clk 0:02:25]} 52. Rh6+ {[%clk 0:00:03]}  Ke7 {[%clk 0:02:25]} 53. f5 {[%clk 0:00:03]}  h3 {[%clk 0:02:24]} 54. g5 {[%clk 0:00:02]}  Rxf5 {[%clk 0:02:23]} 55. Rxh3 {[%clk 0:00:02]}  Rxg5 {[%clk 0:02:23]} 56. Kb3 {[%clk 0:00:03]}  Rg4 {[%clk 0:02:24]} 57. Rg3 {[%clk 0:00:01]}  Rf4 {[%clk 0:02:23]} 58. Re3+ {[%clk 0:00:01]}  Kd6 {[%clk 0:02:23]} 59. f3 {[%clk 0:00:02]}  Kc5 {[%clk 0:02:24]} 60. Rd3 {[%clk 0:00:02]}  Rf8 {[%clk 0:02:23]} 61. Re3 {[%clk 0:00:02]}  Rf5 {[%clk 0:02:22]} 62. Rd3 {[%clk 0:00:02]}  Rh5 {[%clk 0:02:22]} 63. Re3 {[%clk 0:00:03]}  Rg5 {[%clk 0:02:22]} 64. Rd3 {[%clk 0:00:03]}  Rg1 {[%clk 0:02:23]} 65. Re3 {[%clk 0:00:03]}  Rb1+ {[%clk 0:02:24]} 66. Kc2 {[%clk 0:00:03]}  Rf1 {[%clk 0:02:25]} 67. Kb3 {[%clk 0:00:04]}  Rb1+ {[%clk 0:02:25]} 68. Kc2 {[%clk 0:00:04]}  Ra1 {[%clk 0:02:25]} 69. Kb2 {[%clk 0:00:03]}  Ra8 {[%clk 0:02:24]} 70. Re4 {[%clk 0:00:03]}  Rf8 {[%clk 0:02:23]} 71. Re3 {[%clk 0:00:02]}  Kc4 {[%clk 0:02:16]} 72. Re4+ {[%clk 0:00:02]}  Kc5 {[%clk 0:02:16]} 73. Re3 {[%clk 0:00:02]}  Rf4 {[%clk 0:02:17]} 74. Kb3 {[%clk 0:00:02]}  Rf5 {[%clk 0:02:15]} 75. Rd3 {[%clk 0:00:02]}  Re5 {[%clk 0:02:12]} 76. Kb2 {[%clk 0:00:02]}  Kc4 {[%clk 0:02:12]} 77. Rd2 {[%clk 0:00:01]}  b3 {[%clk 0:02:10]} 78. Rf2 {[%clk 0:00:01]}  Ra5 {[%clk 0:02:08]} 79. Kb1 {[%clk 0:00:01]}  Rh5 {[%clk 0:02:05]} 80. f4 {[%clk 0:00:01]}  Kb4 {[%clk 0:02:06]} 81. f5 {[%clk 0:00:01]}  Ka3 {[%clk 0:02:06]} 82. Kc1 {[%clk 0:00:02]}  Rh1+ {[%clk 0:02:06]} 83. Kd2 {[%clk 0:00:02]}  b2 {[%clk 0:02:07]} 84. Rf3+ {[%clk 0:00:00]}  Ka2 {[%clk 0:02:06]} 0-1


[Site "https://www.chess.com"]

[Event "Titled Tuesday Blitz July 11 Late 2023"]
[White "Salazar Farias, Luis German"]
[Black "Rios Escobar, Adan"]
[WhiteFideId "3902170"]
[BlackFideId "3403645"]
[WhiteElo "2582"]
[BlackElo "2436"]
[Result "0-1"]
[Round "3"]
[TimeControl "180+2"]
[Date "2023.07.11"]
[WhiteClock "0:00:00"]
[BlackClock "0:00:05"]
[Board "90"]

1. d4 {[%clk 0:02:55]}  Nf6 {[%clk 0:02:55]} 2. c4 {[%clk 0:02:55]}  g6 {[%clk 0:02:54]} 3. g3 {[%clk 0:02:54]}  c6 {[%clk 0:02:53]} 4. Bg2 {[%clk 0:02:51]}  Bg7 {[%clk 0:02:52]} 5. e4 {[%clk 0:02:49]}  O-O {[%clk 0:02:41]} 6. Nc3 {[%clk 0:02:48]}  d6 {[%clk 0:02:34]} 7. h3 {[%clk 0:02:42]}  a5 {[%clk 0:02:34]} 8. Nf3 {[%clk 0:02:42]}  e5 {[%clk 0:02:28]} 9. O-O {[%clk 0:02:41]}  Na6 {[%clk 0:02:23]} 10. Be3 {[%clk 0:02:40]}  Nh5 {[%clk 0:02:14]} 11. Re1 {[%clk 0:02:33]}  Qe8 {[%clk 0:02:05]} 12. d5 {[%clk 0:02:12]}  c5 {[%clk 0:01:33]} 13. Nb5 {[%clk 0:02:10]}  Qd8 {[%clk 0:01:25]} 14. a3 {[%clk 0:02:01]}  Nc7 {[%clk 0:01:17]} 15. Nxc7 {[%clk 0:01:50]}  Qxc7 {[%clk 0:01:17]} 16. b3 {[%clk 0:01:51]}  Bd7 {[%clk 0:01:12]} 17. Rb1 {[%clk 0:01:45]}  b5 {[%clk 0:01:07]} 18. cxb5 {[%clk 0:01:33]}  Bxb5 {[%clk 0:01:08]} 19. Nd2 {[%clk 0:01:32]}  Bd3 {[%clk 0:00:53]} 20. Rc1 {[%clk 0:01:29]}  Rfb8 {[%clk 0:00:48]} 21. Nc4 {[%clk 0:01:18]}  Bxc4 {[%clk 0:00:46]} 22. Rxc4 {[%clk 0:01:08]}  Rb7 {[%clk 0:00:45]} 23. Qc2 {[%clk 0:00:57]}  Bf6 {[%clk 0:00:38]} 24. Bf1 {[%clk 0:00:55]}  Bd8 {[%clk 0:00:36]} 25. Rc3 {[%clk 0:00:50]}  Qd7 {[%clk 0:00:34]} 26. a4 {[%clk 0:00:39]}  Rab8 {[%clk 0:00:33]} 27. Qd1 {[%clk 0:00:33]}  Rb4 {[%clk 0:00:31]} 28. Bd2 {[%clk 0:00:30]}  Nf6 {[%clk 0:00:30]} 29. Bc4 {[%clk 0:00:26]}  Qxh3 {[%clk 0:00:24]} 30. Rf3 {[%clk 0:00:25]}  Ng4 {[%clk 0:00:16]} 31. Bxb4 {[%clk 0:00:16]}  Rxb4 {[%clk 0:00:17]} 32. Qd3 {[%clk 0:00:09]}  Bg5 {[%clk 0:00:17]} 33. Rd1 {[%clk 0:00:08]}  h5 {[%clk 0:00:17]} 34. Re1 {[%clk 0:00:07]}  Kg7 {[%clk 0:00:17]} 35. Rd1 {[%clk 0:00:07]}  Kh6 {[%clk 0:00:17]} 36. Re1 {[%clk 0:00:07]}  Kg7 {[%clk 0:00:17]} 37. Rd1 {[%clk 0:00:07]}  Bh6 {[%clk 0:00:16]} 38. Re1 {[%clk 0:00:06]}  f6 {[%clk 0:00:17]} 39. Rd1 {[%clk 0:00:06]}  Bg5 {[%clk 0:00:18]} 40. Re1 {[%clk 0:00:07]}  Nh2 {[%clk 0:00:15]} 41. Rfe3 {[%clk 0:00:04]}  Bxe3 {[%clk 0:00:14]} 42. Rxe3 {[%clk 0:00:03]}  Ng4 {[%clk 0:00:14]} 43. Rf3 {[%clk 0:00:04]}  g5 {[%clk 0:00:13]} 44. Qc2 {[%clk 0:00:03]}  Nh2 {[%clk 0:00:12]} 45. Re3 {[%clk 0:00:03]}  g4 {[%clk 0:00:10]} 46. Be2 {[%clk 0:00:03]}  Kg6 {[%clk 0:00:08]} 47. Qd3 {[%clk 0:00:03]}  Rd4 {[%clk 0:00:04]} 48. Qc2 {[%clk 0:00:03]}  Rb4 {[%clk 0:00:04]} 49. Qc3 {[%clk 0:00:03]}  Rd4 {[%clk 0:00:04]} 50. Qc2 {[%clk 0:00:03]}  Nf3+ {[%clk 0:00:05]} 51. Bxf3 {[%clk 0:00:03]}  gxf3 {[%clk 0:00:04]} 52. Rxf3 {[%clk 0:00:04]}  h4 {[%clk 0:00:05]} 53. Qc3 {[%clk 0:00:00]}  Rd1+ {[%clk 0:00:05]} 0-1


[Site "https://www.chess.com"]

[Event "Titled Tuesday Blitz July 11 Late 2023"]
[White "Kaplan, Avi Harrison"]
[Black "Kirillov, Dmitry"]
[WhiteFideId "30934559"]
[BlackFideId "34180572"]
[WhiteElo "2431"]
[BlackElo "2566"]
[Result "1-0"]
[Round "3"]
[TimeControl "180+2"]
[Date "2023.07.11"]
[WhiteClock "0:00:04"]
[BlackClock "0:00:03"]
[Board "93"]

1. b3 {[%clk 0:03:00]}  a5 {[%clk 0:02:53]} 2. a3 {[%clk 0:02:59]}  Nf6 {[%clk 0:02:49]} 3. Bb2 {[%clk 0:02:59]}  d5 {[%clk 0:02:48]} 4. e3 {[%clk 0:02:58]}  Bf5 {[%clk 0:02:47]} 5. c4 {[%clk 0:02:55]}  e6 {[%clk 0:02:47]} 6. Nf3 {[%clk 0:02:54]}  Nbd7 {[%clk 0:02:43]} 7. Be2 {[%clk 0:02:53]}  c6 {[%clk 0:02:37]} 8. O-O {[%clk 0:02:52]}  Be7 {[%clk 0:02:36]} 9. d3 {[%clk 0:02:48]}  h6 {[%clk 0:02:35]} 10. Nbd2 {[%clk 0:02:48]}  O-O {[%clk 0:02:34]} 11. Rc1 {[%clk 0:02:47]}  Bh7 {[%clk 0:02:31]} 12. h3 {[%clk 0:02:44]}  Re8 {[%clk 0:02:29]} 13. Rc2 {[%clk 0:02:38]}  Bd6 {[%clk 0:02:23]} 14. Qa1 {[%clk 0:02:35]}  e5 {[%clk 0:02:22]} 15. cxd5 {[%clk 0:02:35]}  cxd5 {[%clk 0:02:15]} 16. Rfc1 {[%clk 0:02:35]}  Qb6 {[%clk 0:02:08]} 17. Bf1 {[%clk 0:02:03]}  Rad8 {[%clk 0:01:35]} 18. g4 {[%clk 0:01:33]}  Qa7 {[%clk 0:00:59]} 19. a4 {[%clk 0:01:17]}  Qb8 {[%clk 0:00:57]} 20. Ba3 {[%clk 0:01:06]}  e4 {[%clk 0:00:56]} 21. dxe4 {[%clk 0:01:03]}  Nxe4 {[%clk 0:00:56]} 22. Bxd6 {[%clk 0:00:53]}  Qxd6 {[%clk 0:00:52]} 23. Nd4 {[%clk 0:00:40]}  Ng5 {[%clk 0:00:45]} 24. Rc7 {[%clk 0:00:32]}  Nf6 {[%clk 0:00:34]} 25. N2f3 {[%clk 0:00:24]}  Nge4 {[%clk 0:00:17]} 26. Nb5 {[%clk 0:00:16]}  Qb6 {[%clk 0:00:13]} 27. Qd4 {[%clk 0:00:13]}  Qa6 {[%clk 0:00:12]} 28. Nc3 {[%clk 0:00:08]}  Qd6 {[%clk 0:00:11]} 29. Nb5 {[%clk 0:00:06]}  Qa6 {[%clk 0:00:09]} 30. Qa7 {[%clk 0:00:06]}  Qxa7 {[%clk 0:00:09]} 31. Nxa7 {[%clk 0:00:07]}  Nd6 {[%clk 0:00:08]} 32. Nd4 {[%clk 0:00:05]}  Nfe4 {[%clk 0:00:08]} 33. Nab5 {[%clk 0:00:05]}  h5 {[%clk 0:00:07]} 34. Nxd6 {[%clk 0:00:05]}  Nxd6 {[%clk 0:00:07]} 35. Nb5 {[%clk 0:00:04]}  hxg4 {[%clk 0:00:07]} 36. hxg4 {[%clk 0:00:04]}  Re4 {[%clk 0:00:07]} 37. Nxd6 {[%clk 0:00:04]}  Rxg4+ {[%clk 0:00:07]} 38. Kh2 {[%clk 0:00:04]}  Rh4+ {[%clk 0:00:05]} 39. Kg3 {[%clk 0:00:04]}  Rh6 {[%clk 0:00:06]} 40. Nxf7 {[%clk 0:00:04]}  Rg6+ {[%clk 0:00:07]} 41. Kh2 {[%clk 0:00:04]}  Rf8 {[%clk 0:00:07]} 42. Ne5 {[%clk 0:00:04]}  Rxf2+ {[%clk 0:00:08]} 43. Kh1 {[%clk 0:00:04]}  Re6 {[%clk 0:00:04]} 44. Rc8+ {[%clk 0:00:04]}  Rf8 {[%clk 0:00:04]} 45. Rxf8+ {[%clk 0:00:04]}  Kxf8 {[%clk 0:00:05]} 46. Ng4 {[%clk 0:00:05]}  Be4+ {[%clk 0:00:05]} 47. Kh2 {[%clk 0:00:05]}  Rg6 {[%clk 0:00:05]} 48. Nf2 {[%clk 0:00:04]}  Rh6+ {[%clk 0:00:06]} 49. Kg3 {[%clk 0:00:05]}  Rg6+ {[%clk 0:00:06]} 50. Kh2 {[%clk 0:00:05]}  Rh6+ {[%clk 0:00:06]} 51. Bh3 {[%clk 0:00:06]}  Rb6 {[%clk 0:00:04]} 52. Nxe4 {[%clk 0:00:06]}  dxe4 {[%clk 0:00:05]} 53. Rc3 {[%clk 0:00:06]}  Rd6 {[%clk 0:00:04]} 54. Kg3 {[%clk 0:00:06]}  Rd2 {[%clk 0:00:03]} 55. Bf5 {[%clk 0:00:07]}  Kf7 {[%clk 0:00:03]} 56. Bxe4 {[%clk 0:00:07]}  Rb2 {[%clk 0:00:03]} 57. Bxb7 {[%clk 0:00:07]}  Kf6 {[%clk 0:00:03]} 58. Bd5 {[%clk 0:00:07]}  Ke5 {[%clk 0:00:03]} 59. Bc4 {[%clk 0:00:07]}  g5 {[%clk 0:00:03]} 60. Kf3 {[%clk 0:00:08]}  Rh2 {[%clk 0:00:03]} 61. Rc1 {[%clk 0:00:07]}  Rh3+ {[%clk 0:00:03]} 62. Ke2 {[%clk 0:00:07]}  Ke4 {[%clk 0:00:03]} 63. Bd3+ {[%clk 0:00:07]}  Ke5 {[%clk 0:00:03]} 64. Rg1 {[%clk 0:00:08]}  Rh2+ {[%clk 0:00:03]} 65. Kf3 {[%clk 0:00:08]}  Rh3+ {[%clk 0:00:03]} 66. Rg3 {[%clk 0:00:08]}  Rh1 {[%clk 0:00:01]} 67. Rxg5+ {[%clk 0:00:08]}  Kd6 {[%clk 0:00:02]} 68. Rxa5 {[%clk 0:00:09]}  Rh3+ {[%clk 0:00:03]} 69. Ke2 {[%clk 0:00:09]}  Rh2+ {[%clk 0:00:03]} 70. Kd1 {[%clk 0:00:09]}  Rh1+ {[%clk 0:00:04]} 71. Kd2 {[%clk 0:00:10]}  Rh2+ {[%clk 0:00:04]} 72. Kc3 {[%clk 0:00:10]}  Rh5 {[%clk 0:00:03]} 73. Rxh5 {[%clk 0:00:04]} 1-0


[Site "https://www.chess.com"]

[Event "Titled Tuesday Blitz July 11 Late 2023"]
[White "Taranenko, Evgueniy"]
[Black "Karttunen, Mika"]
[WhiteFideId "14122138"]
[BlackFideId "502081"]
[WhiteElo "2424"]
[BlackElo "2565"]
[Result "1-0"]
[Round "3"]
[TimeControl "180+2"]
[Date "2023.07.11"]
[WhiteClock "0:01:28"]
[BlackClock "0:00:13"]
[Board "96"]

1. e4 {[%clk 0:03:00]}  e6 {[%clk 0:02:59]} 2. d4 {[%clk 0:03:00]}  d5 {[%clk 0:02:59]} 3. Nc3 {[%clk 0:03:00]}  Bb4 {[%clk 0:02:58]} 4. Qd3 {[%clk 0:02:59]}  dxe4 {[%clk 0:02:51]} 5. Qxe4 {[%clk 0:03:00]}  Nf6 {[%clk 0:02:49]} 6. Qh4 {[%clk 0:03:00]}  Be7 {[%clk 0:02:34]} 7. Bg5 {[%clk 0:02:59]}  h6 {[%clk 0:02:34]} 8. Nf3 {[%clk 0:02:55]}  Nbd7 {[%clk 0:02:31]} 9. O-O-O {[%clk 0:02:53]}  c6 {[%clk 0:02:17]} 10. Bd3 {[%clk 0:02:53]}  Qa5 {[%clk 0:02:12]} 11. Rhe1 {[%clk 0:02:43]}  Rg8 {[%clk 0:01:20]} 12. Bxf6 {[%clk 0:02:40]}  Nxf6 {[%clk 0:01:14]} 13. Qg3 {[%clk 0:02:40]}  Bd7 {[%clk 0:00:55]} 14. Ne5 {[%clk 0:02:37]}  Bd6 {[%clk 0:00:44]} 15. f4 {[%clk 0:02:20]}  Bxe5 {[%clk 0:00:32]} 16. fxe5 {[%clk 0:02:13]}  Nd5 {[%clk 0:00:32]} 17. Ne4 {[%clk 0:02:13]}  Qxa2 {[%clk 0:00:31]} 18. Nd6+ {[%clk 0:02:04]}  Kd8 {[%clk 0:00:31]} 19. c4 {[%clk 0:01:53]}  Nb4 {[%clk 0:00:22]} 20. Bb1 {[%clk 0:01:54]}  Qa6 {[%clk 0:00:21]} 21. Qb3 {[%clk 0:01:48]}  c5 {[%clk 0:00:21]} 22. dxc5 {[%clk 0:01:41]}  Nc6 {[%clk 0:00:20]} 23. Qd3 {[%clk 0:01:29]}  Kc7 {[%clk 0:00:13]} 24. Nb5+ {[%clk 0:01:28]} 1-0


[Site "https://www.chess.com"]

[Event "Titled Tuesday Blitz July 11 Late 2023"]
[White "Campos, Maria Jose"]
[Black "Ballester Llagaria, Luis Eduardo"]
[WhiteFideId "146803"]
[BlackFideId "2297620"]
[WhiteElo "2400"]
[BlackElo "2558"]
[Result "0-1"]
[Round "3"]
[TimeControl "180+2"]
[Date "2023.07.11"]
[WhiteClock "0:01:48"]
[BlackClock "0:00:34"]
[Board "101"]

1. c4 {[%clk 0:02:52]}  e5 {[%clk 0:02:59]} 2. g3 {[%clk 0:02:52]}  Nc6 {[%clk 0:03:00]} 3. Bg2 {[%clk 0:02:53]}  f5 {[%clk 0:03:01]} 4. Nc3 {[%clk 0:02:52]}  Nf6 {[%clk 0:03:01]} 5. Nf3 {[%clk 0:02:52]}  e4 {[%clk 0:02:56]} 6. Ng5 {[%clk 0:02:44]}  h6 {[%clk 0:02:51]} 7. Nh3 {[%clk 0:02:44]}  g5 {[%clk 0:02:51]} 8. d3 {[%clk 0:02:43]}  Bb4 {[%clk 0:02:52]} 9. O-O {[%clk 0:02:43]}  Bxc3 {[%clk 0:02:47]} 10. bxc3 {[%clk 0:02:43]}  d6 {[%clk 0:02:48]} 11. Ba3 {[%clk 0:02:42]}  O-O {[%clk 0:02:42]} 12. Rb1 {[%clk 0:02:39]}  b6 {[%clk 0:02:40]} 13. f3 {[%clk 0:02:37]}  exd3 {[%clk 0:02:17]} 14. exd3 {[%clk 0:02:35]}  Bd7 {[%clk 0:01:35]} 15. f4 {[%clk 0:02:33]}  g4 {[%clk 0:01:36]} 16. Nf2 {[%clk 0:02:33]}  Qe7 {[%clk 0:01:30]} 17. Qd2 {[%clk 0:02:33]}  Rae8 {[%clk 0:01:29]} 18. Rbe1 {[%clk 0:02:33]}  Qf7 {[%clk 0:01:29]} 19. Bc1 {[%clk 0:02:27]}  h5 {[%clk 0:01:24]} 20. Qc2 {[%clk 0:02:26]}  Kg7 {[%clk 0:01:18]} 21. Be3 {[%clk 0:02:26]}  h4 {[%clk 0:01:11]} 22. Re2 {[%clk 0:02:25]}  hxg3 {[%clk 0:01:10]} 23. hxg3 {[%clk 0:02:24]}  Kg6 {[%clk 0:01:05]} 24. Rfe1 {[%clk 0:02:24]}  Nh5 {[%clk 0:01:03]} 25. Nh1 {[%clk 0:02:24]}  Re7 {[%clk 0:01:01]} 26. Bf2 {[%clk 0:02:17]}  Rfe8 {[%clk 0:01:00]} 27. Qd2 {[%clk 0:02:15]}  Rxe2 {[%clk 0:00:50]} 28. Rxe2 {[%clk 0:02:15]}  Rxe2 {[%clk 0:00:51]} 29. Qxe2 {[%clk 0:02:15]}  Qe7 {[%clk 0:00:51]} 30. Kf1 {[%clk 0:02:10]}  Qxe2+ {[%clk 0:00:49]} 31. Kxe2 {[%clk 0:02:11]}  Kf6 {[%clk 0:00:48]} 32. Bd5 {[%clk 0:02:10]}  Ne7 {[%clk 0:00:48]} 33. Bd4+ {[%clk 0:02:08]}  Kg6 {[%clk 0:00:46]} 34. Bg2 {[%clk 0:02:05]}  Bc6 {[%clk 0:00:43]} 35. Kf2 {[%clk 0:02:04]}  Bxg2 {[%clk 0:00:42]} 36. Kxg2 {[%clk 0:02:05]}  Nc6 {[%clk 0:00:42]} 37. Nf2 {[%clk 0:02:04]}  Kf7 {[%clk 0:00:38]} 38. Nd1 {[%clk 0:02:04]}  Ne7 {[%clk 0:00:34]} 39. Ne3 {[%clk 0:02:04]}  c5 {[%clk 0:00:34]} 40. Bh8 {[%clk 0:01:48]}  Kg8 {[%clk 0:00:34]} 0-1


[Site "https://www.chess.com"]

[Event "Titled Tuesday Blitz July 11 Late 2023"]
[White "Kochiev, Ivan"]
[Black "Seletsky, Grigory"]
[WhiteFideId "2917890"]
[BlackFideId "14112191"]
[WhiteElo "2556"]
[BlackElo "2406"]
[Result "0-1"]
[Round "3"]
[TimeControl "180+2"]
[Date "2023.07.11"]
[WhiteClock "0:00:03"]
[BlackClock "0:00:11"]
[Board "102"]

1. e4 {[%clk 0:03:00]}  c5 {[%clk 0:02:59]} 2. Nf3 {[%clk 0:02:58]}  b6 {[%clk 0:02:57]} 3. c4 {[%clk 0:02:56]}  Bb7 {[%clk 0:02:54]} 4. Nc3 {[%clk 0:02:56]}  e6 {[%clk 0:02:53]} 5. d4 {[%clk 0:02:56]}  cxd4 {[%clk 0:02:53]} 6. Nxd4 {[%clk 0:02:57]}  d6 {[%clk 0:02:51]} 7. Be3 {[%clk 0:02:57]}  a6 {[%clk 0:02:51]} 8. Be2 {[%clk 0:02:57]}  Nd7 {[%clk 0:02:52]} 9. O-O {[%clk 0:02:57]}  Ngf6 {[%clk 0:02:51]} 10. f3 {[%clk 0:02:57]}  Be7 {[%clk 0:02:50]} 11. Qd2 {[%clk 0:02:57]}  O-O {[%clk 0:02:50]} 12. Rac1 {[%clk 0:02:57]}  Rc8 {[%clk 0:02:49]} 13. b4 {[%clk 0:02:57]}  Qc7 {[%clk 0:02:49]} 14. Nb3 {[%clk 0:02:58]}  Qb8 {[%clk 0:02:46]} 15. Rfd1 {[%clk 0:02:57]}  Kh8 {[%clk 0:02:31]} 16. Na4 {[%clk 0:02:48]}  Bc6 {[%clk 0:02:22]} 17. Nc3 {[%clk 0:02:46]}  Ne5 {[%clk 0:02:17]} 18. h3 {[%clk 0:02:28]}  Ba8 {[%clk 0:02:09]} 19. Na4 {[%clk 0:02:27]}  b5 {[%clk 0:02:07]} 20. Nb6 {[%clk 0:02:21]}  Rc7 {[%clk 0:01:57]} 21. cxb5 {[%clk 0:02:17]}  Rxc1 {[%clk 0:01:54]} 22. Rxc1 {[%clk 0:02:16]}  axb5 {[%clk 0:01:55]} 23. Nxa8 {[%clk 0:02:12]}  Qxa8 {[%clk 0:01:54]} 24. Bxb5 {[%clk 0:02:12]}  d5 {[%clk 0:01:53]} 25. exd5 {[%clk 0:02:10]}  Nxd5 {[%clk 0:01:52]} 26. Bc5 {[%clk 0:02:06]}  Qa3 {[%clk 0:01:35]} 27. Bxe7 {[%clk 0:01:49]}  Nxe7 {[%clk 0:01:33]} 28. Qd6 {[%clk 0:01:49]}  N5g6 {[%clk 0:01:30]} 29. Rc2 {[%clk 0:01:37]}  Nf5 {[%clk 0:01:26]} 30. Qd2 {[%clk 0:01:34]}  h6 {[%clk 0:01:16]} 31. Bd3 {[%clk 0:01:27]}  Ngh4 {[%clk 0:01:14]} 32. b5 {[%clk 0:01:22]}  Rd8 {[%clk 0:01:13]} 33. Bxf5 {[%clk 0:01:19]}  Qa8 {[%clk 0:00:58]} 34. Bd3 {[%clk 0:00:59]}  Nxf3+ {[%clk 0:00:58]} 35. gxf3 {[%clk 0:00:56]}  Qxf3 {[%clk 0:00:58]} 36. b6 {[%clk 0:00:19]}  Rxd3 {[%clk 0:00:56]} 37. b7 {[%clk 0:00:10]}  Qg3+ {[%clk 0:00:51]} 38. Kf1 {[%clk 0:00:05]}  Rxd2 {[%clk 0:00:42]} 39. Rc8+ {[%clk 0:00:02]}  Kh7 {[%clk 0:00:41]} 40. Nxd2 {[%clk 0:00:03]}  Qxh3+ {[%clk 0:00:31]} 41. Kg1 {[%clk 0:00:04]}  Qg4+ {[%clk 0:00:25]} 42. Kh2 {[%clk 0:00:02]}  Qe2+ {[%clk 0:00:19]} 43. Kh3 {[%clk 0:00:01]}  Qe3+ {[%clk 0:00:17]} 44. Kg4 {[%clk 0:00:01]}  Qd4+ {[%clk 0:00:15]} 45. Kh3 {[%clk 0:00:01]}  Qd3+ {[%clk 0:00:14]} 46. Kh4 {[%clk 0:00:01]}  Qd4+ {[%clk 0:00:13]} 47. Kh3 {[%clk 0:00:02]}  Qe3+ {[%clk 0:00:13]} 48. Kh4 {[%clk 0:00:03]}  g5+ {[%clk 0:00:12]} 49. Kg4 {[%clk 0:00:03]}  f5+ {[%clk 0:00:11]} 50. Kh5 {[%clk 0:00:03]}  Qh3# {[%clk 0:00:11]} 0-1


[Site "https://www.chess.com"]

[Event "Titled Tuesday Blitz July 11 Late 2023"]
[White "FromTexas54"]
[Black "micke12a"]
[WhiteElo "2553"]
[BlackElo "2392"]
[Result "1-0"]
[Round "3"]
[TimeControl "180+2"]
[Date "2023.07.11"]
[WhiteClock "0:01:36"]
[BlackClock "0:00:04"]
[Board "103"]

1. d4 {[%clk 0:02:56]}  Nf6 {[%clk 0:02:59]} 2. c4 {[%clk 0:02:56]}  g6 {[%clk 0:02:56]} 3. Nc3 {[%clk 0:02:55]}  d5 {[%clk 0:02:55]} 4. cxd5 {[%clk 0:02:55]}  Nxd5 {[%clk 0:02:55]} 5. Bd2 {[%clk 0:02:56]}  Bg7 {[%clk 0:02:55]} 6. e4 {[%clk 0:02:57]}  Nxc3 {[%clk 0:02:55]} 7. Bxc3 {[%clk 0:02:57]}  O-O {[%clk 0:02:47]} 8. Qd2 {[%clk 0:02:58]}  c5 {[%clk 0:02:42]} 9. d5 {[%clk 0:02:58]}  e6 {[%clk 0:02:41]} 10. Bxg7 {[%clk 0:02:56]}  Kxg7 {[%clk 0:02:41]} 11. Bc4 {[%clk 0:02:56]}  exd5 {[%clk 0:02:38]} 12. Bxd5 {[%clk 0:02:54]}  Nc6 {[%clk 0:02:24]} 13. Ne2 {[%clk 0:02:50]}  Nb4 {[%clk 0:02:19]} 14. Nc3 {[%clk 0:02:47]}  Nxd5 {[%clk 0:02:15]} 15. Nxd5 {[%clk 0:02:48]}  b6 {[%clk 0:02:10]} 16. O-O-O {[%clk 0:02:28]}  Bb7 {[%clk 0:01:49]} 17. h4 {[%clk 0:02:28]}  Bxd5 {[%clk 0:01:47]} 18. exd5 {[%clk 0:02:23]}  h6 {[%clk 0:01:36]} 19. f4 {[%clk 0:01:58]}  h5 {[%clk 0:01:05]} 20. f5 {[%clk 0:01:58]}  Qf6 {[%clk 0:01:01]} 21. Rhf1 {[%clk 0:01:56]}  Qxh4 {[%clk 0:00:52]} 22. f6+ {[%clk 0:01:54]}  Kh7 {[%clk 0:00:51]} 23. Rf4 {[%clk 0:01:46]}  Qg5 {[%clk 0:00:36]} 24. g4 {[%clk 0:01:46]}  h4 {[%clk 0:00:36]} 25. Rh1 {[%clk 0:01:41]}  Rad8 {[%clk 0:00:34]} 26. Qf2 {[%clk 0:01:41]}  Rxd5 {[%clk 0:00:19]} 27. Rxh4+ {[%clk 0:01:41]}  Kg8 {[%clk 0:00:19]} 28. Qh2 {[%clk 0:01:39]}  Qxh4 {[%clk 0:00:07]} 29. Qxh4 {[%clk 0:01:38]}  g5 {[%clk 0:00:04]} 30. Qh6 {[%clk 0:01:36]} 1-0


[Site "https://www.chess.com"]